bitfinex/quotes_ETHUSD_20250715
["timestamp","ask_amount","ask_price","bid_price","bid_amount"]
[1752609363967,3.0,3053.6,3052.8,1e-08]
[1752609364165,3.27555105,3053.0,3052.8,1e-08]
[1752609364368,3.0,3053.3,3052.8,1e-08]
[1752609364611,3.0,3053.4,3052.9,0.4585]
[1752609364815,3.0,3053.6,3053.0,0.4585]
[1752609365009,0.001,3053.8,3053.1,3.30802793]
[1752609365216,8.34900904,3053.8,3052.8,1e-08]
[1752609365380,3.27521304,3053.3,3052.8,5.64000001]
[1752609365582,3.2754216,3053.1,3052.8,5.64000001]
[1752609365782,3.27547581,3053.0,3052.8,1e-08]
[1752609365983,3.099,3053.7,3052.8,1e-08]
[1752609365984,7.10240816,3053.1,3052.8,1e-08]
[1752609366213,0.001,3053.8,3052.9,1.1952]
[1752609366509,3.0,3053.5,3053.0,5.67275466]
[1752609366711,3.27495586,3053.5,3053.1,0.4585]
[1752609367020,3.0,3053.5,3053.0,0.03275466]
[1752609367183,6.27497702,3053.5,3053.1,5.639]
[1752609367387,3.27557404,3052.9,3052.8,1e-08]
[1752609367716,3.27661185,3052.0,3051.1,1.2352]
[1752609367872,3.27706234,3051.6,3051.1,1.2352]
[1752609368072,3.277273,3051.4,3051.1,0.04]
[1752609368328,0.03275482,3051.5,3051.1,0.04]
[1752609368475,0.03275482,3051.7,3051.1,0.6078]
[1752609368677,0.03275482,3051.7,3051.1,0.04]
[1752609368912,3.27737657,3051.3,3051.1,0.04]
[1752609369207,3.31015387,3051.2,3051.1,0.04]
[1752609369913,0.03275482,3051.3,3051.1,0.04]
[1752609370294,3.27739905,3051.2,3051.1,0.04]
[1752609370613,6.2772272,3051.4,3051.1,0.04]
[1752609370777,3.03275482,3051.4,3051.1,0.04]
[1752609371112,3.2773089,3051.3,3051.1,0.04]
[1752609371812,6.30998474,3051.4,3051.1,0.04]
[1752609372286,4.05140216,3051.9,3051.2,0.4585]
[1752609372491,3.27640731,3052.2,3051.4,0.7367]
[1752609372707,3.27636169,3052.2,3051.5,3.30982732]
[1752609372905,0.03275482,3052.6,3051.5,0.49127076]
[1752609373211,0.03275482,3052.6,3051.6,3.27690382]
[1752609373411,0.1632,3052.2,3051.6,0.1632]
[1752609373592,3.27652022,3052.1,3051.6,0.1632]
[1752609373915,0.03275482,3052.0,3051.6,0.6217]
[1752609374090,3.0,3051.8,3051.5,5.637]
[1752609374501,3.19595482,3052.0,3051.5,5.637]
[1752609374692,0.7747,3053.2,3051.7,3.27686207]
[1752609375015,3.27647155,3052.1,3051.8,5.636]
[1752609375513,3.03275482,3052.2,3051.8,5.636]
[1752609376324,3.0,3052.8,3051.9,0.46676647]
[1752609376525,3.27589684,3052.6,3052.1,0.1632]
[1752609376725,3.0,3052.5,3052.1,0.1632]
[1752609376888,3.27620314,3052.4,3052.1,0.1632]
[1752609377090,3.27642396,3052.2,3051.6,5.635]
[1752609377291,3.03275482,3052.1,3051.7,0.1632]
[1752609377523,3.30925483,3052.1,3051.7,0.1632]
[1752609377888,3.27665542,3051.9,3051.7,0.1632]
[1752609378303,0.03275482,3052.1,3051.7,0.1632]
[1752609378518,3.0,3052.0,3051.7,0.1632]
[1752609378818,3.27654183,3052.0,3051.7,0.1632]
[1752609379021,0.03275482,3052.1,3051.7,0.1632]
[1752609379396,3.30928877,3052.1,3051.7,0.1632]
[1752609379729,0.03275482,3052.1,3051.7,0.1632]
[1752609379933,3.0,3052.0,3051.7,0.1632]
[1752609380789,0.03275482,3052.1,3051.7,0.1632]
[1752609380991,4.09690088,3052.7,3051.9,3.27664733]
[1752609381319,3.2760074,3052.5,3052.1,0.1632]
[1752609381536,6.30893782,3052.4,3052.1,5.7962]
[1752609381713,3.03275482,3052.4,3052.1,5.7962]
[1752609382035,6.30886633,3052.4,3052.1,0.1632]
[1752609382239,3.27632527,3052.2,3051.7,0.03276862]
[1752609382406,3.19595482,3052.4,3051.9,0.1632]
[1752609382807,3.27632616,3052.2,3051.9,0.1632]
[1752609382998,0.03275482,3052.1,3051.9,0.1632]
[1752609383197,3.27653997,3052.0,3051.6,0.002]
[1752609383549,3.27653997,3052.0,3051.7,0.1632]
[1752609384035,3.27605617,3052.5,3051.7,0.57972]
[1752609384238,0.03275482,3052.6,3052.0,3.27645579]
[1752609384395,3.19595482,3052.6,3052.1,0.1632]
[1752609384596,3.0,3052.4,3052.1,0.1632]
[1752609384828,0.03275482,3052.4,3052.1,0.1632]
[1752609385029,3.03275482,3052.4,3052.1,0.1632]
[1752609385348,0.03275482,3052.4,3052.1,0.1632]
[1752609385516,0.03275482,3052.5,3052.1,0.1632]
[1752609386610,3.0,3052.4,3052.1,0.1632]
[1752609387145,0.03275482,3052.5,3052.1,0.1632]
[1752609387350,6.43912632,3052.6,3052.1,0.1632]
[1752609387555,0.03275482,3052.5,3052.1,0.1632]
[1752609387943,6.43912632,3052.6,3052.1,0.1632]
[1752609388263,0.1632,3052.6,3052.2,0.434]
[1752609388561,0.001,3052.8,3052.7,3.27578864]
[1752609388936,0.001,3052.8,3052.7,0.5972]
[1752609389538,0.001,3052.8,3052.7,0.1632]
[1752609389739,0.001,3052.8,3052.6,5.629]
[1752609390139,3.30947641,3052.8,3052.6,5.629]
[1752609390470,3.30945812,3052.8,3052.4,0.1632]
[1752609390653,3.30945812,3052.8,3052.5,5.629]
[1752609390854,3.27589595,3052.6,3052.4,0.1632]
[1752609391088,3.27589595,3052.6,3052.5,5.629]
[1752609391432,3.27600327,3052.5,3052.4,0.1632]
[1752609391649,3.03275482,3052.5,3052.1,5.627]
[1752609391845,3.0,3052.0,3051.6,0.002]
[1752609392046,3.27686207,3051.7,3051.6,0.002]
[1752609392472,3.30961689,3051.7,3051.6,0.002]
[1752609392678,6.30961689,3051.7,3051.6,0.002]
[1752609395271,6.30961689,3051.7,3051.6,0.0453]
[1752609395778,3.57935403,3052.5,3051.6,0.0453]
[1752609395991,0.7505,3052.5,3051.8,3.2766714]
[1752609396156,3.27580031,3052.7,3051.9,3.71058367]
[1752609396157,3.27598476,3052.6,3051.9,3.71058367]
[1752609396478,0.03275482,3052.5,3052.0,3.27648061]
[1752609396653,3.30877311,3052.5,3052.1,6.06]
[1752609396851,3.0,3052.4,3052.1,9.33636844]
[1752609397051,3.30877116,3052.5,3052.2,0.434]
[1752609397256,3.0,3052.4,3052.1,5.626]
[1752609397476,3.27612223,3052.4,3052.1,5.626]
[1752609398184,6.30877835,3052.5,3052.1,5.626]
[1752609398387,3.2762474,3052.3,3052.1,5.626]
[1752609398696,3.27632527,3052.2,3052.1,5.625]
[1752609398900,3.27644099,3052.1,3051.9,5.625]
[1752609399102,3.30898685,3052.3,3051.9,5.625]
[1752609399103,3.27635563,3052.2,3051.9,5.625]
[1752609399289,0.03275482,3052.1,3051.9,5.625]
[1752609399477,3.27639472,3052.2,3051.9,5.625]
[1752609399671,3.27653997,3052.0,3051.9,5.625]
[1752609399873,0.03275482,3052.2,3051.6,0.0453]
[1752609400185,3.0,3052.3,3051.6,5.6693]
[1752609400372,3.2767754,3051.8,3051.6,5.6693]
[1752609400899,3.276844,3051.8,3051.6,5.6693]
[1752609401100,3.30944378,3051.9,3051.6,0.0453]
[1752609401395,0.03275482,3051.9,3051.6,5.6693]
[1752609401596,4.03918771,3052.5,3051.6,5.6693]
[1752609401597,0.7631,3052.5,3051.7,0.46676862]
[1752609401762,3.0,3052.3,3051.8,4.17658092]
[1752609401964,3.0,3052.3,3051.9,0.434]
[1752609402280,3.0,3052.3,3052.0,5.623]
[1752609403328,0.03275482,3052.4,3052.1,0.434]
[1752609403642,3.03275482,3052.4,3052.1,0.434]
[1752609404709,0.03275482,3052.4,3052.1,5.622]
[1752609404921,6.27653851,3052.1,3052.0,5.622]
[1752609405238,3.0,3052.1,3052.0,5.622]
[1752609406403,0.03275482,3052.3,3052.0,5.622]
[1752609406737,3.03275482,3052.3,3052.0,5.622]
[1752609406935,3.03275482,3052.3,3052.1,5.62]
[1752609406936,3.30898641,3052.3,3052.1,5.62]
[1752609407137,3.0,3052.2,3052.1,5.62]
[1752609407296,3.0,3052.2,3051.9,0.4555]
[1752609407501,0.03275482,3052.1,3052.0,5.62]
[1752609407701,0.03275482,3052.1,3051.9,0.4555]
[1752609407935,3.43922131,3052.5,3052.0,9.35203997]
[1752609407936,0.03275482,3052.4,3052.0,9.35203997]
[1752609408143,0.03275482,3052.4,3052.1,0.4555]
[1752609408640,0.03275482,3052.4,3052.2,0.4555]
[1752609410062,0.03275482,3052.4,3052.0,5.62]
[1752609410425,0.03275482,3052.4,3052.1,0.4555]
[1752609411262,3.30887295,3052.4,3052.1,0.4555]
[1752609411463,3.30887295,3052.4,3052.0,5.62]
[1752609411625,3.30887295,3052.4,3052.0,6.0755]
[1752609412051,0.03275482,3052.4,3052.0,6.0755]
[1752609412260,3.03275482,3052.4,3052.0,9.35196208]
[1752609412458,0.03275482,3052.4,3052.1,0.4555]
[1752609413674,0.001,3052.8,3052.2,1.1922]
[1752609413857,0.001,3052.8,3052.6,0.1632]
[1752609414051,0.001,3052.8,3052.7,5.616]
[1752609414425,0.001,3052.8,3052.7,0.4555]
[1752609414625,0.001,3052.8,3052.7,6.0705]
[1752609414826,0.001,3052.8,3052.7,9.34628864]
[1752609415027,0.001,3052.8,3052.7,10.62482665]
[1752609415432,0.001,3052.8,3052.7,10.78802665]
[1752609415629,0.001,3052.8,3052.7,5.7782]
[1752609415834,0.001,3052.8,3052.7,5.615]
[1752609416033,0.001,3052.8,3052.7,6.1138]
[1752609416963,0.001,3052.8,3052.7,9.38958864]
[1752609417168,0.001,3052.8,3052.7,9.55278864]
[1752609417372,0.001,3052.8,3052.7,11.38565533]
[1752609417588,0.001,3052.8,3052.7,12.36503948]
[1752609418655,0.001,3052.8,3052.7,6.75003948]
[1752609418862,0.001,3052.8,3052.7,12.36303948]
[1752609419853,0.03375482,3053.8,3053.2,3.27519096]
[1752609420062,0.03375482,3053.8,3053.3,8.88613755]
[1752609420265,0.001,3053.8,3053.3,6.0665]
[1752609420458,0.001,3053.8,3053.7,3.43791591]
[1752609420663,0.001,3053.8,3053.7,5.7732]
[1752609420859,0.001,3053.8,3053.7,0.1632]
[1752609421057,0.001,3053.8,3053.7,0.6187]
[1752609421459,6.27560868,3053.8,3053.7,0.1632]
[1752609421660,3.9702,3053.7,3052.7,1.01214203]
[1752609421959,3.0,3053.2,3052.8,5.7722]
[1752609422146,3.27553554,3053.0,3052.8,5.7722]
[1752609422345,0.19595482,3053.3,3052.8,5.7722]
[1752609422582,3.27537918,3053.1,3052.8,5.7722]
[1752609422786,3.47112723,3053.3,3052.8,5.7722]
[1752609422787,3.27528938,3053.2,3052.8,5.7722]
[1752609422992,3.27528938,3053.2,3052.9,5.609]
[1752609423191,3.27528938,3053.2,3052.8,0.1632]
[1752609423192,3.27528938,3053.2,3053.0,5.608]
[1752609423488,3.30811429,3053.1,3052.8,0.1632]
[1752609423647,0.03275482,3053.1,3052.9,5.608]
[1752609424048,0.03275482,3053.1,3052.8,0.1632]
[1752609424265,0.03275482,3053.1,3052.0,0.002]
[1752609424266,3.2757933,3052.7,3052.5,0.1632]
[1752609424477,6.2757933,3052.7,3052.6,5.608]
[1752609425049,3.0,3052.7,3052.6,5.608]
[1752609425451,3.27511984,3053.4,3052.6,5.608]
[1752609425452,3.0,3053.5,3052.7,4.01241973]
[1752609425783,3.0,3053.5,3052.9,0.1632]
[1752609425784,3.27516172,3053.3,3052.9,0.1632]
[1752609425948,3.19595482,3053.4,3052.9,0.1632]
[1752609425949,3.47101617,3053.4,3053.0,5.607]
[1752609426149,0.001,3053.8,3053.1,0.4555]
[1752609426387,3.0,3053.5,3053.2,0.1632]
[1752609426590,0.19595482,3053.4,3053.3,5.606]
[1752609426882,0.03275482,3053.5,3053.3,5.606]
[1752609427089,3.30769511,3053.5,3053.3,5.606]
[1752609427588,3.30769511,3053.5,3052.9,0.1632]
[1752609427589,3.27531162,3053.2,3052.9,0.1632]
[1752609427789,0.03275482,3053.2,3052.9,0.1632]
[1752609427989,3.30807013,3053.2,3053.0,5.605]
[1752609428591,3.27535947,3053.1,3053.0,5.605]
[1752609429153,3.27535947,3053.1,3052.9,0.1632]
[1752609429494,3.2761106,3052.4,3051.8,8.3245]
[1752609429696,3.0,3052.2,3052.0,5.7692]
[1752609429990,0.03275482,3052.3,3052.0,1.57457]
[1752609430284,3.27637431,3052.2,3052.0,0.002]
[1752609430483,3.19595482,3052.3,3052.0,0.002]
[1752609430699,6.47220642,3052.3,3052.0,0.002]
[1752609431201,3.27643262,3052.1,3052.0,0.002]
[1752609431364,3.27639524,3052.2,3052.0,0.002]
[1752609431557,0.03275482,3052.1,3052.0,0.002]
[1752609431981,6.47221523,3052.3,3052.0,0.002]
[1752609432302,0.19595482,3052.3,3052.0,0.002]
[1752609432514,3.2763422,3052.2,3052.0,0.002]
[1752609432724,3.0,3052.2,3052.0,0.002]
[1752609433596,3.0,3052.2,3052.1,5.602]
[1752609434120,3.27643262,3052.1,3052.0,0.002]
[1752609434287,6.30918744,3052.1,3052.0,5.603]
[1752609436256,3.03275482,3052.1,3052.0,5.603]
[1752609436418,0.1632,3052.3,3052.0,6.63862]
[1752609436592,0.1632,3052.3,3052.1,1.1955]
[1752609436791,3.0,3052.5,3052.1,1.3587]
[1752609436992,0.03275482,3052.4,3052.1,0.622]
[1752609437215,6.43913201,3052.6,3052.1,0.622]
[1752609437394,3.27600369,3052.5,3052.1,0.622]
[1752609437594,0.03275482,3052.4,3052.1,0.1632]
[1752609438324,0.03275482,3052.5,3052.1,0.2065]
[1752609438534,0.03275482,3052.5,3052.2,5.599]
[1752609439330,0.03275482,3052.5,3052.1,0.2065]
[1752609439495,3.27632527,3052.2,3052.1,0.0433]
[1752609439694,6.27632527,3052.2,3052.1,0.0433]
[1752609439931,6.30908009,3052.2,3052.1,0.0433]
[1752609440528,6.73648009,3052.2,3052.1,0.0433]
[1752609440688,3.03275482,3052.2,3052.1,0.0433]
[1752609440895,6.30908009,3052.2,3052.1,0.0433]
[1752609443043,3.2758298,3052.7,3052.1,0.0433]
[1752609443044,0.1632,3053.0,3052.1,1.80303]
[1752609443336,3.27596316,3052.6,3052.3,0.1632]
[1752609443498,3.2760477,3052.5,3052.3,0.1632]
[1752609443850,6.27627555,3052.3,3052.1,0.0433]
[1752609444162,0.8013,3052.4,3052.1,0.0433]
[1752609444457,0.1632,3052.2,3052.1,0.0433]
[1752609444619,3.43952527,3052.2,3052.1,0.0433]
[1752609444811,0.1632,3052.2,3052.1,0.0433]
[1752609445828,4.16358978,3052.2,3052.1,0.0433]
[1752609446029,10.81408978,3052.2,3052.1,0.0433]
[1752609446354,7.79268978,3052.2,3052.1,0.0433]
[1752609446648,12.66262527,3052.2,3052.1,0.0433]
[1752609446857,13.09002527,3052.2,3052.1,0.0433]
[1752609447662,12.66162527,3052.2,3052.1,0.0433]
[1752609449632,12.66062527,3052.2,3052.1,0.0433]
[1752609450269,13.08802527,3052.2,3052.1,0.0433]
[1752609450554,13.08802527,3052.2,3052.0,1e-08]
[1752609450555,7.06263262,3052.1,3052.0,1e-08]
[1752609450741,7.49003262,3052.1,3052.0,1e-08]
[1752609450944,7.06263262,3052.1,3052.0,1e-08]
[1752609451244,7.49003262,3052.1,3052.0,1e-08]
[1752609451445,38.04003262,3052.1,3052.0,1e-08]
[1752609451649,7.06284733,3051.9,3051.8,1e-08]
[1752609451842,51.00185637,3051.9,3051.8,1e-08]
[1752609452158,4.64146207,3051.7,3051.6,1e-08]
[1752609452356,43.23146207,3051.7,3051.6,1e-08]
[1752609452717,43.65886207,3051.7,3051.6,1e-08]
[1752609453753,3.27739905,3051.2,3051.1,0.04]
[1752609454067,21.04460809,3051.2,3051.1,0.04]
[1752609454224,3.27782876,3050.8,3050.7,0.002]
[1752609454555,12.69702876,3050.8,3050.7,0.002]
[1752609454743,14.6260527,3050.6,3050.5,0.002]
[1752609454941,20.2150527,3050.6,3050.5,0.002]
[1752609455144,20.6424527,3050.6,3050.5,1e-08]
[1752609455350,21.4716527,3050.6,3050.5,1e-08]
[1752609455538,21.9779915,3050.6,3050.5,1e-08]
[1752609456336,21.5505915,3050.6,3050.5,1e-08]
[1752609456532,21.9779915,3050.6,3050.5,1e-08]
[1752609457673,21.9769915,3050.6,3050.5,1e-08]
[1752609459940,21.9759915,3050.6,3050.5,1e-08]
[1752609461028,16.3889915,3050.6,3050.5,1e-08]
[1752609461364,7.05490353,3049.8,3049.7,0.3]
[1752609461565,20.98891257,3049.8,3049.7,0.3]
[1752609462226,17.71000904,3049.8,3049.7,0.3]
[1752609462452,3.0,3049.8,3049.7,0.3]
[1752609462651,8.586,3049.8,3049.7,0.7588]
[1752609462851,0.7568,3050.6,3049.7,0.7588]
[1752609463058,0.1632,3050.0,3049.8,0.4588]
[1752609463232,0.1632,3050.0,3049.9,0.4588]
[1752609463872,3.0,3050.1,3049.9,0.4588]
[1752609464031,5.585,3050.2,3050.0,0.4588]
[1752609464231,0.17132349,3051.2,3050.3,3.27836606]
[1752609464467,0.1632,3050.8,3050.5,3.27815112]
[1752609464969,0.1632,3050.8,3050.6,3.73682209]
[1752609465141,0.1632,3050.8,3050.6,3.27802209]
[1752609465341,5.584,3051.2,3050.7,1.1719]
[1752609465553,0.1632,3051.1,3050.7,1.1816883]
[1752609465757,0.1632,3051.1,3050.8,0.4352]
[1752609465960,0.1632,3051.1,3050.9,0.4352]
[1752609466383,3.1632,3051.1,3050.7,0.7367]
[1752609466535,3.1632,3051.1,3051.0,0.4352]
[1752609466742,3.44070647,3051.1,3051.0,0.4352]
[1752609467187,3.2771373,3051.5,3051.0,0.4352]
[1752609467397,3.27730169,3051.3,3051.0,0.806488]
[1752609467541,3.0,3051.2,3051.1,0.4352]
[1752609467738,3.0,3051.3,3051.1,0.4352]
[1752609467994,3.0,3051.3,3051.2,0.4352]
[1752609468488,8.7452,3051.4,3051.2,0.4352]
[1752609468692,6.27729164,3051.3,3051.2,0.4352]
[1752609469944,3.0,3051.0,3050.8,0.4352]
[1752609470146,3.0,3051.0,3050.6,0.002]
[1752609470147,3.27793621,3050.7,3050.6,0.002]
[1752609470480,6.27793621,3050.7,3050.6,0.002]
[1752609472147,0.1632,3050.8,3050.6,0.4372]
[1752609472372,0.1632,3050.8,3050.7,0.7367]
[1752609472570,0.1632,3050.8,3050.7,1.61709905]
[1752609472940,0.1632,3050.8,3050.7,1.1719]
[1752609473996,6.27743394,3051.2,3050.7,1.1719]
[1752609473997,0.8253,3051.6,3050.7,1.1719]
[1752609474162,0.1632,3051.2,3050.7,0.8999]
[1752609474372,0.1632,3051.2,3050.8,0.4352]
[1752609474554,0.1632,3051.2,3050.9,0.4352]
[1752609474754,3.27756266,3051.1,3050.9,0.4352]
[1752609474951,3.27756266,3051.1,3051.0,0.4352]
[1752609475298,0.1632,3051.2,3050.7,1.3351]
[1752609475591,3.27750647,3051.1,3050.8,0.4352]
[1752609475901,3.27750647,3051.1,3050.9,0.4352]
[1752609476195,0.1632,3051.2,3051.0,0.4352]
[1752609476367,3.44061626,3051.2,3051.0,0.4352]
[1752609476570,3.44061626,3051.2,3051.1,0.4352]
[1752609477150,3.44061626,3051.2,3050.8,0.4352]
[1752609477353,3.44089266,3051.0,3050.9,0.4352]
[1752609477775,3.27775442,3050.9,3050.7,0.7367]
[1752609478091,3.27775442,3050.9,3050.7,1.1719]
[1752609478296,3.44086527,3051.0,3050.7,0.7367]
[1752609478471,3.44086527,3051.0,3050.8,0.4352]
[1752609478793,0.1632,3051.0,3050.6,0.002]
[1752609478999,3.0,3050.9,3050.7,0.4352]
[1752609479169,3.0,3050.9,3050.6,0.002]
[1752609479170,3.0,3050.9,3050.8,0.4352]
[1752609479373,3.27772132,3050.9,3050.8,0.4352]
[1752609479895,3.27789947,3050.8,3050.6,0.002]
[1752609480086,3.27782876,3050.8,3050.6,0.002]
[1752609480283,3.27793621,3050.7,3050.6,0.002]
[1752609480462,6.27793621,3050.7,3050.6,0.002]
[1752609480661,7.39671271,3050.7,3050.6,0.002]
[1752609480856,7.39671271,3050.7,3049.9,0.041]
[1752609480857,6.27868852,3050.0,3049.9,0.041]
[1752609481311,3.27911817,3049.7,3048.8,0.76949979]
[1752609481508,14.67533338,3049.5,3048.5,0.164]
[1752609481801,3.28021689,3048.6,3048.2,0.164]
[1752609481965,3.28033419,3048.5,3048.2,0.164]
[1752609482168,3.28039221,3048.5,3048.3,0.4352]
[1752609482395,3.8216,3049.5,3048.4,0.4352]
[1752609482708,3.0,3049.1,3048.6,0.7367]
[1752609482875,3.0,3049.1,3048.7,0.40497623]
[1752609483080,0.8216,3049.5,3048.8,3.71512224]
[1752609483289,3.0,3049.4,3048.8,0.4352]
[1752609483462,3.27962995,3049.2,3048.8,0.4352]
[1752609483665,3.27968275,3049.1,3048.8,0.4352]
[1752609483905,3.27959318,3049.2,3048.9,0.4352]
[1752609484104,3.27974688,3049.1,3048.9,0.4352]
[1752609484301,3.27976385,3049.0,3048.9,0.4352]
[1752609484509,3.27976385,3049.0,3048.6,0.76950194]
[1752609484510,3.6559318,3049.0,3048.2,0.7367]
[1752609484705,3.28038961,3048.5,3048.2,0.7367]
[1752609485081,3.0,3048.9,3048.2,0.7367]
[1752609485287,3.2804837,3048.4,3048.2,0.7367]
[1752609485615,3.28081085,3048.1,3047.9,0.7367]
[1752609485907,3.28081085,3048.1,3047.9,0.4352]
[1752609486106,3.28059015,3048.3,3047.9,0.4352]
[1752609486107,3.28083989,3048.0,3047.9,0.4352]
[1752609486311,3.28083989,3048.0,3047.5,0.4352]
[1752609486523,3.0,3048.2,3047.5,0.4352]
[1752609486672,3.28101656,3047.9,3047.6,0.4352]
[1752609486868,3.28112938,3047.8,3047.6,0.4352]
[1752609487102,3.28116284,3047.7,3047.6,0.4352]
[1752609487298,8.568,3048.2,3047.6,0.4352]
[1752609487502,3.0,3047.9,3047.6,0.4352]
[1752609487986,3.28086445,3048.0,3047.6,0.4352]
[1752609488186,3.0,3048.1,3047.7,0.4352]
[1752609488390,8.84746739,3048.4,3047.8,0.4352]
[1752609488605,3.0,3048.3,3047.8,0.4352]
[1752609488907,3.0,3048.1,3047.9,0.4352]
[1752609489113,6.28055161,3048.3,3047.9,0.4352]
[1752609489314,6.28055161,3048.3,3047.4,4.01815469]
[1752609489315,4.09463223,3048.3,3047.4,1.1719]
[1752609489498,3.28102715,3047.9,3047.4,0.7367]
[1752609489899,4.09463223,3048.3,3047.5,0.4352]
[1752609490100,6.28057631,3048.3,3047.6,3.2812705]
[1752609490411,8.84638978,3048.5,3047.8,3.28099272]
[1752609490613,0.7777,3048.8,3047.9,0.4352]
[1752609490814,3.0,3048.6,3048.0,3.28077573]
[1752609490983,8.84601315,3048.8,3048.2,3.28058957]
[1752609491318,3.28011002,3048.7,3048.1,0.4352]
[1752609491618,3.0,3048.4,3048.0,0.7367]
[1752609491822,6.2804223,3048.4,3048.1,0.4352]
[1752609492000,3.0,3048.6,3048.1,0.4352]
[1752609492203,0.9125,3049.1,3048.0,0.7367]
[1752609492204,0.8135,3049.1,3048.2,0.4352]
[1752609492501,3.28026511,3048.6,3048.2,0.5992]
[1752609492705,3.0,3048.5,3048.2,0.5992]
[1752609492892,3.280517,3048.3,3048.2,0.164]
[1752609493097,3.0,3048.7,3048.0,0.7367]
[1752609493413,3.28060224,3048.3,3048.0,0.9007]
[1752609493907,3.28068311,3048.2,3047.7,1.1719]
[1752609494089,0.164,3048.4,3047.8,0.5992]
[1752609494583,3.0,3048.0,3047.7,0.7367]
[1752609494780,0.164,3048.2,3047.8,0.4352]
[1752609495094,3.0,3048.4,3047.9,3.47767241]
[1752609495416,0.164,3048.5,3048.0,0.4747]
[1752609495625,3.27944627,3049.3,3048.7,3.28001781]
[1752609495832,11.59336845,3050.6,3048.8,1.2114]
[1752609495833,0.787,3049.8,3048.8,1.2114]
[1752609496125,0.787,3050.2,3048.9,1.18483871]
[1752609496279,3.27853263,3050.2,3049.6,3.27906276]
[1752609496482,0.7991,3050.6,3049.7,0.4747]
[1752609496715,3.27833812,3050.4,3049.8,3.27890173]
[1752609496892,3.0,3050.3,3049.7,0.4747]
[1752609497296,3.0,3050.1,3049.7,0.4747]
[1752609497518,3.0,3050.1,3049.6,3.31187068]
[1752609497822,3.0,3050.2,3049.8,0.4747]
[1752609498123,3.27848738,3050.2,3049.9,0.4747]
[1752609498288,6.27841204,3050.3,3049.9,0.4747]
[1752609498490,3.27848511,3050.2,3049.9,0.4747]
[1752609498718,6.27841026,3050.3,3049.9,0.4747]
[1752609498914,3.0,3050.3,3049.9,0.4747]
[1752609499120,3.0,3050.1,3049.9,0.4747]
[1752609499418,6.27841635,3050.3,3049.9,0.4747]
[1752609499720,6.27841635,3050.3,3049.6,0.03279118]
[1752609499721,3.27858488,3050.1,3049.6,0.50749118]
[1752609499938,3.0,3050.1,3049.6,3.78659248]
[1752609500155,3.0,3050.1,3049.6,3.31189248]
[1752609500284,3.0,3050.1,3049.7,0.4747]
[1752609500486,3.27860526,3050.1,3049.7,5.558]
[1752609500688,3.27860526,3050.1,3049.8,0.4747]
[1752609500897,3.0,3050.2,3049.8,0.4747]
[1752609501117,3.27842825,3050.3,3049.8,0.4747]
[1752609501325,0.7991,3050.6,3049.8,0.4747]
[1752609501522,3.0,3050.2,3049.8,0.4747]
[1752609501728,3.27926554,3049.5,3049.1,0.7367]
[1752609502019,3.27918568,3049.6,3049.2,0.4747]
[1752609502185,3.0,3050.0,3049.2,0.4747]
[1752609502386,0.4274,3050.1,3049.2,0.4747]
[1752609502581,3.27918087,3049.6,3049.2,0.4747]
[1752609502819,3.27916562,3049.6,3049.2,0.4747]
[1752609503412,3.27924694,3049.5,3049.2,0.4747]
[1752609503947,0.8029,3049.9,3049.3,0.4747]
[1752609504124,3.0,3049.8,3049.3,0.4747]
[1752609504424,6.27894391,3049.8,3049.3,0.4747]
[1752609504622,0.8029,3050.3,3049.4,0.50749333]
[1752609504821,3.27844331,3050.3,3049.7,3.27900472]
[1752609505007,3.0,3050.4,3049.8,3.27887809]
[1752609505324,3.90610151,3050.4,3049.8,3.27887809]
[1752609505501,0.1632,3050.3,3049.8,3.27887809]
[1752609505823,0.1632,3049.9,3049.6,5.553]
[1752609506723,0.1632,3049.9,3049.6,9.30681142]
[1752609506923,0.1632,3049.9,3049.8,3.27890353]
[1752609507125,3.8029,3050.8,3049.8,3.27881308]
[1752609507288,3.0,3050.2,3049.7,3.91686468]
[1752609507619,3.0,3050.2,3049.8,0.4747]
[1752609507837,3.27785739,3050.8,3050.2,3.27842511]
[1752609508008,3.27812689,3050.6,3050.2,5.551]
[1752609508203,3.32781269,3050.5,3050.2,5.551]
[1752609508437,3.0,3050.5,3050.2,5.551]
[1752609508621,0.4274,3051.0,3050.1,5.55]
[1752609508827,3.0,3050.3,3050.1,5.55]
[1752609509262,0.1632,3050.4,3050.2,0.0329]
[1752609509615,3.1632,3050.4,3050.2,0.0329]
[1752609510355,3.27836606,3050.3,3050.2,0.0329]
[1752609510557,6.27836606,3050.3,3050.2,0.0329]
[1752609511057,6.70576606,3050.3,3050.2,0.0329]
[1752609512257,6.27836606,3050.3,3050.2,0.0329]
[1752609512714,3.27794539,3050.7,3050.2,0.0329]
[1752609512921,0.1632,3050.4,3050.2,0.0329]
[1752609513137,3.1632,3050.4,3050.2,0.0329]
[1752609513355,0.1632,3050.4,3050.2,0.0329]
[1752609513545,3.44149183,3050.4,3050.2,0.0329]
[1752609514262,15.82955599,3050.3,3050.2,0.0329]
[1752609515164,15.82955599,3050.3,3048.9,1.2114]
[1752609515318,3.28008659,3048.7,3048.6,0.7367]
[1752609515518,3.28008659,3048.7,3048.3,6.2807]
[1752609515718,3.28023786,3048.6,3048.3,6.2807]
[1752609515952,3.28012093,3048.7,3048.3,1.2114]
[1752609516167,3.28009957,3048.7,3048.4,0.4747]
[1752609516336,3.8085,3049.2,3048.4,6.0177]
[1752609516671,3.28001608,3048.8,3048.4,6.0177]
[1752609516823,3.28008703,3048.7,3048.4,6.0177]
[1752609517018,3.28022174,3048.6,3048.4,6.0177]
[1752609517227,3.28030178,3048.5,3048.4,5.543]